fUSD/lending_fUSD_20240103
["ID","MTS","AMOUNT","RATE_DAILY","PERIOD"]
[310084880,1704309042592,-6407.52982608,0.00032776,3]
[310084881,1704309042607,-532.56882263,0.00032776,3]
[310084883,1704309042619,-1310.14820022,0.00032776,3]
[310084912,1704309043045,-1012.5,0.000327,2]
[310084913,1704309043109,-1260.0193676,0.000327,2]
[310084914,1704309043120,-4175.1504738,0.00032776,3]
[310084915,1704309043132,-5399.13216545,0.00032776,3]
[310084916,1704309043145,-2516.71935879,0.00032776,3]
[310084917,1704309043158,-5453.35724674,0.00032776,3]
[310084918,1704309043174,-4407.87064526,0.00032776,3]
[310084919,1704309043185,-332.94017272,0.00032776,3]
[310084920,1704309043209,-307.64485446,0.00032776,3]
[310084921,1704309043220,-423.38563623,0.00032776,4]
[310084922,1704309043243,-538.48805861,0.00032776,4]
[310084923,1704309043285,-919.83983289,0.00032776,4]
[310084924,1704309043296,-193.52608582,0.00032776,4]
[310084925,1704309043307,-175.823702,0.00032776,2]
[310084926,1704309043318,-150.86287723,0.00032776,2]
[310084927,1704309043329,-141.44556254,0.00032801,2]
[310084928,1704309043343,-18.84443746,0.00032801,2]
[310084929,1704309043353,-513.89137288,0.00032872,4]
[310084930,1704309043367,-1279.17980774,0.00032872,4]
[310084931,1704309043380,-811.86806938,0.00032872,4]
[310084932,1704309043390,-153.13193062,0.00032872,4]
[310084961,1704309046142,-284.0485,0.00031001,5]
[310084962,1704309046204,-265.18314423,0.00031001,5]
[310084964,1704309046327,-500.0,0.00031001,5]
[310084969,1704309051975,274954.61970472,0.00023,2]
[310084970,1704309099695,12745.76438287,0.00023,2]
[310084971,1704309105685,514.67974286,0.00022999,2]
[310084972,1704309456697,175.85196232,0.00022999,2]
[310084973,1704309458362,485434.15101169,0.00022999,2]
[310084974,1704309460503,844.28526169,0.00022999,2]
[310084975,1704309460576,270.94497981,0.00022999,15]
[310084979,1704309472246,542.69342556,0.00022999,2]
[310084980,1704309476464,844.28526169,0.00022999,2]
[310084981,1704309478526,186.17716464,0.00022999,15]
[310084982,1704309492240,295.43738885,0.00022999,2]
[310084983,1704309492473,844.28526169,0.00022999,2]
[310084984,1704309500028,250.0,0.000192,2]
[310084985,1704309514465,846.08687433,0.00022999,2]
[310084997,1704309562034,1091678.19923059,0.00022999,2]
[310084998,1704309578051,48717.32337181,0.00022999,2]
[310085002,1704309760751,39579.64796651,0.00022999,2]
[310085007,1704310087783,172.31,0.00022569,2]
[310085078,1704310232081,-179.4138,0.00025,2]
[310085080,1704310232090,-471.80282371,0.00025771,2]
[310085082,1704310232099,-1042.9001587,0.00025771,2]
[310085084,1704310232109,-695.52274718,0.00025772,2]
[310085086,1704310232119,-3181.30577157,0.00025772,2]
[310085088,1704310232128,-523.02257823,0.00025773,2]
[310085090,1704310232138,-446.17403311,0.00025773,2]
[310085092,1704310232147,-313.34252938,0.00025774,2]
[310085094,1704310232157,-526.58804281,0.00025775,2]
[310085096,1704310232166,-500.00466881,0.00025775,2]
[310085098,1704310232175,-150.0,0.00025777,2]
[310085100,1704310232184,-206.0,0.00025787,2]
[310085102,1704310232192,-408.63260001,0.00025811,2]
[310085104,1704310232202,-598.96054017,0.00026347,2]
[310085106,1704310232211,-431.81,0.00026408,2]
[310085108,1704310232220,-346.19,0.00026408,2]
[310085110,1704310232230,-155.0,0.00026681,2]
[310085112,1704310232239,-8917.46,0.00026681,2]
[310085114,1704310232249,-999.99,0.00026787,2]
[310085116,1704310232262,-150.99,0.00026787,2]
[310085118,1704310232274,-499.99,0.00026787,2]
[310085121,1704310232284,-6428.35,0.00026787,2]
[310085122,1704310232293,-350.0,0.00027,3]
[310085123,1704310232303,-150.0,0.00027277,2]
[310085124,1704310232313,-153.71033263,0.00027487,2]
[310085125,1704310232324,-151.01146899,0.00027825,2]
[310085126,1704310232334,-334.39,0.00028156,2]
[310085127,1704310232345,-1220.67,0.00028179,2]
[310085128,1704310232356,-282.26,0.0002818,2]
[310085129,1704310232365,-500.0,0.00028182,2]
[310085130,1704310232375,-153.71033255,0.00028182,2]
[310085131,1704310232384,-2705.0,0.00028249,2]
[310085132,1704310232393,-2699.61469104,0.00028267,2]
[310085133,1704310232403,-7830.80733233,0.00028277,2]
[310085134,1704310232420,-452.65686627,0.00028277,2]
[310085135,1704310232431,-975.5378,0.00028277,2]
[310085136,1704310232444,-395.76320725,0.00028277,2]
[310085137,1704310232456,-14245.23479415,0.00028277,2]
[310085138,1704310232466,-150.0,0.00028288,2]
[310085139,1704310232475,-496.87,0.00028299,2]
[310085140,1704310232486,-213.37,0.00028311,2]
[310085141,1704310232496,-200.0,0.00028312,2]
[310085142,1704310232505,-3032.79,0.00028321,2]
[310085143,1704310232516,-12498.15,0.00028324,2]
[310085145,1704310232525,-717.22,0.00028325,2]
[310085147,1704310232534,-3174.24,0.00028325,2]
[310085149,1704310232544,-1402.88,0.00028337,2]
[310085151,1704310232554,-159.89,0.00028345,2]
[310085153,1704310232563,-750.0,0.0002835,2]
[310085154,1704310232572,-200.0,0.00028371,2]
[310085156,1704310232582,-1822.63,0.00028393,2]
[310085158,1704310232591,-521.69660047,0.00028421,4]
[310085160,1704310232601,-832.95,0.00028429,2]
[310085162,1704310232610,-7810.96,0.00028459,2]
[310085164,1704310232619,-2788.53,0.00028501,2]
[310085166,1704310232629,-156.64,0.00028538,2]
[310085168,1704310232638,-9570.6429,0.00028599,2]
[310085170,1704310232647,-431.81,0.00028672,2]
[310085172,1704310232656,-199.27,0.00028696,2]
[310085174,1704310232666,-159.89,0.00028699,2]
[310085176,1704310232675,-280.27668862,0.00028711,2]
[310085177,1704310232684,-942.36,0.00028738,2]
[310085178,1704310232694,-158.5,0.00028805,2]
[310085179,1704310232703,-282.78,0.00028865,2]
[310085180,1704310232712,-153.71033255,0.00028878,2]
[310085181,1704310232722,-206.0,0.00028897,7]
[310085182,1704310232731,-2652.6456,0.000289,2]
[310085183,1704310232741,-675.1928,0.000289,2]
[310085184,1704310232751,-1894.0,0.000289,2]
[310085185,1704310232762,-400.0,0.00029,3]
[310085186,1704310232772,-19231.0,0.00029,2]
[310085187,1704310232782,-2011.54574809,0.00029002,2]
[310085188,1704310232791,-159.89,0.00029053,2]
[310085189,1704310232800,-282.26,0.00029158,2]
[310085190,1704310232810,-258.0,0.00029171,2]
[310085191,1704310232819,-3169.11,0.00029391,2]
[310085192,1704310232829,-159.89,0.00029408,2]
[310085193,1704310232839,-182.65,0.0002947,2]
[310085194,1704310232848,-153.71033255,0.00029573,2]
[310085195,1704310232857,-159.89,0.00029762,2]
[310085196,1704310232867,-213.37,0.00029783,2]
[310085197,1704310232876,-2535.1367,0.000298,2]
[310085198,1704310232886,-983.1838,0.000298,2]
[310085199,1704310232895,-155.0,0.0003,2]
[310085200,1704310232904,-1000.0,0.0003,2]
[310085201,1704310232919,-258.0,0.00030072,2]
[310085202,1704310232935,-159.89,0.00030116,2]
[310085203,1704310232945,-282.26,0.00030137,2]
[310085204,1704310232956,-164.81,0.0003019,2]
[310085205,1704310232966,-153.71033255,0.00030269,2]
[310085206,1704310232976,-205.1,0.00030285,2]
[310085207,1704310232985,-182.65,0.00030453,2]
[310085208,1704310232995,-159.89,0.00030471,2]
[310085209,1704310233006,-814.12,0.00030567,2]
[310085210,1704310233018,-492.83979718,0.00030687,4]
[310085211,1704310233028,-159.89,0.00030825,2]
[310085212,1704310233038,-979.42663588,0.000309,14]
[310085213,1704310233050,-638.0874,0.000309,2]
[310085214,1704310233061,-500.0,0.000309,2]
[310085215,1704310233071,-340.0089,0.000309,2]
[310085216,1704310233080,-249.86,0.000309,2]
[310085217,1704310233089,-200.0,0.000309,11]
[310085218,1704310233100,-347.93754815,0.000309,2]
[310085219,1704310233110,-431.81,0.00030935,2]
[310085220,1704310233120,-153.71033255,0.00030964,2]
[310085221,1704310233131,-258.0,0.00030973,2]
[310085222,1704310233141,-688.73360525,0.00030997,2]
[310085223,1704310233150,-155.0,0.00030997,4]
[310085224,1704310233160,-1702.94991301,0.00030997,4]
[310085225,1704310233171,-171.29294843,0.00030997,4]
[310085226,1704310233183,-3612.04475606,0.00030997,4]
[310085227,1704310233193,-360.87448358,0.00030997,4]
[310085228,1704310233205,-444.58913394,0.00030998,4]
[310085229,1704310233214,-5871.99275912,0.00030998,4]
[310085230,1704310233225,-73781.87336706,0.00030999,2]
[310085231,1704310233235,-50000.0,0.00031,2]
[310085232,1704310233245,-350000.0,0.00031,2]
[310085233,1704310233255,-450.0,0.00031,3]
[310085234,1704310233265,-710.84,0.00031001,2]
[310085235,1704310233276,-282.26,0.00031115,2]
[310085236,1704310233286,-159.89,0.00031179,2]
[310085237,1704310233296,-153.84,0.00031211,2]
[310085238,1704310233306,-151.9349792,0.00031228,2]
[310085239,1704310233316,-2585.47084952,0.00031388,4]
[310085240,1704310233326,-182.65,0.00031435,2]
[310085242,1704310233336,-14485.0,0.000315,2]
[310085243,1704310233345,-153.71033255,0.00031659,2]
[310085244,1704310233355,-712.22242548,0.00031751,14]
[310085245,1704310233364,-1000.0,0.00031799,2]
[310085246,1704310233374,-52485.1762326,0.000318,3]
[310085247,1704310233384,-260.66,0.000318,2]
[310085248,1704310233393,-717.22,0.00031866,2]
[310085249,1704310233402,-190.87736119,0.000319,4]
[310085250,1704310233412,-175.73,0.000319,2]
[310085251,1704310233421,-50000.0,0.00032,2]
[310085252,1704310233431,-151.0,0.00032,7]
[310085253,1704310233440,-206.0,0.00032008,12]
[310085254,1704310233449,-282.26,0.00032094,2]
[310085255,1704310233459,-153.84,0.00032157,2]
[310085256,1704310233469,-153.71033255,0.00032355,2]
[310085257,1704310233479,-180.53,0.00032359,2]
[310085258,1704310233488,-151.42,0.00032416,2]
[310085259,1704310233497,-151.42,0.00032416,2]
[310085260,1704310233508,-151.0,0.00032417,7]
[310085261,1704310233517,-100000.0,0.00032417,2]
[310085262,1704310233527,-182.65,0.00032417,2]
[310085263,1704310233536,-282.78,0.00032473,2]
[310085264,1704310233546,-151.0,0.00032475,120]
[310085265,1704310233556,-937.85,0.00032501,2]
[310085266,1704310233565,-937.85,0.00032501,2]
[310085267,1704310233575,-41217.25005786,0.0003259,7]
[310085268,1704310233585,-15548.03862781,0.0003259,7]
[310085269,1704310233594,-7222.3126898,0.0003259,7]
[310085270,1704310233604,-12203.537505,0.0003259,7]
[310085271,1704310233614,-7485.14262035,0.0003259,7]
[310085272,1704310233624,-2183.58193287,0.00032676,4]
[310085273,1704310233634,-500.0,0.000327,11]
[310085274,1704310233644,-2317.12285535,0.000327,2]
[310085275,1704310233653,-2317.12285534,0.000327,2]
[310085276,1704310233663,-2317.12285534,0.000327,2]
[310085277,1704310233672,-2317.12285534,0.000327,2]
[310085278,1704310233683,-2317.12285534,0.000327,2]
[310085279,1704310233693,-2317.12285534,0.000327,2]
[310085280,1704310233702,-2317.12285534,0.000327,2]
[310085281,1704310233712,-2317.12285534,0.000327,2]
[310085282,1704310233721,-2317.12285534,0.000327,2]
[310085283,1704310233731,-2317.12285534,0.000327,2]
[310085284,1704310233740,-2317.12285534,0.000327,2]
[310085285,1704310233750,-2317.12285534,0.000327,2]
[310085286,1704310233763,-2317.12285534,0.000327,2]
[310085287,1704310233773,-2317.12285534,0.000327,2]
[310085288,1704310233783,-2317.12285534,0.000327,2]
[310085289,1704310233793,-150.86287723,0.00032775,2]
[310085290,1704310233803,-7500.0,0.00032776,2]
[310085291,1704310233812,-5453.3573,0.00032776,3]
[310085292,1704310233822,-151.0,0.00032776,7]
[310085293,1704310233832,-190.87736119,0.00032776,6]
[310085294,1704310233842,-150.01,0.000328,2]
[310085295,1704310233852,-3285.13803586,0.000328,2]
[310085296,1704310233862,-800.0,0.000328,11]
[310085297,1704310233872,-1006.46553,0.00032801,2]
[310085298,1704310233882,-2317.12285534,0.00032814,2]
[310085299,1704310233891,-394.67484961,0.00032872,4]
[310085300,1704310233901,-293.83751499,0.00032872,2]
[310085301,1704310233911,-306.68418109,0.00032872,4]
[310085302,1704310233920,-2000.0,0.00032872,2]
[310085303,1704310233930,-200.0,0.00032872,2]
[310085304,1704310233940,-676.38772422,0.00032874,4]
[310085305,1704310233950,-8806.28564995,0.00032874,4]
[310085306,1704310233960,-1132.97142941,0.00032874,4]
[310085307,1704310233970,-33895.36984846,0.00032875,4]
[310085308,1704310233980,-334.75749674,0.00032876,4]
[310085309,1704310233990,-151.0,0.00032876,7]
[310085310,1704310233999,-151.0,0.00032876,7]
[310085311,1704310234009,-500.0,0.00032876,2]
[310085312,1704310234019,-500.0,0.00032876,2]
[310085313,1704310234029,-507.91312847,0.00032876,2]
[310085314,1704310234039,-500.0,0.00032876,2]
[310085315,1704310234050,-500.0,0.00032876,2]
[310085316,1704310234060,-1000.71449046,0.00032876,2]
[310085317,1704310234071,-500.0,0.00032876,2]
[310085318,1704310234081,-500.0,0.00032876,2]
[310085319,1704310234090,-500.0,0.00032876,2]
[310085320,1704310234101,-500.0,0.00032876,2]
[310085321,1704310234110,-500.0,0.00032876,2]
[310085322,1704310234121,-500.0,0.00032876,2]
[310085323,1704310234130,-500.0,0.00032876,2]
[310085324,1704310234140,-500.0,0.00032876,2]
[310085325,1704310234151,-500.0,0.00032876,2]
[310085326,1704310234162,-500.0,0.00032876,2]
[310085327,1704310234171,-2013.41,0.00032876,2]
[310085328,1704310234181,-718.17,0.00032876,2]
[310085329,1704310234191,-500.0,0.00032876,2]
[310085330,1704310234201,-500.0,0.00032876,2]
[310085331,1704310234210,-500.0,0.00032876,2]
[310085332,1704310234220,-500.0,0.00032876,2]
[310085333,1704310234229,-500.0,0.00032876,2]
[310085334,1704310234238,-500.0,0.00032876,2]
[310085335,1704310234248,-500.0,0.00032876,2]
[310085336,1704310234258,-500.0,0.00032876,2]
[310085337,1704310234269,-500.0,0.00032876,2]
[310085338,1704310234279,-500.0,0.00032876,2]
[310085339,1704310234288,-500.0,0.00032876,2]
[310085340,1704310234298,-500.0,0.00032876,2]
[310085341,1704310234307,-500.0,0.00032876,2]
[310085342,1704310234316,-500.0,0.00032876,2]
[310085343,1704310234326,-500.0,0.00032876,2]
[310085344,1704310234336,-500.0,0.00032876,2]
[310085345,1704310234345,-631.01403616,0.00032876,2]
[310085346,1704310234355,-500.0,0.00032876,2]
[310085347,1704310234364,-236.32162163,0.00032876,2]
[310085348,1704310234374,-506.29,0.00032876,2]
[310085349,1704310234383,-500.0,0.00032876,2]
[310085350,1704310234393,-500.0,0.00032876,2]
[310085351,1704310234403,-171.05946774,0.00032876,2]
[310085352,1704310234412,-500.0,0.00032876,2]
[310085353,1704310234425,-500.0,0.00032876,2]
[310085354,1704310234434,-500.0,0.00032876,2]
[310085355,1704310234444,-525.49497218,0.00032876,2]
[310085356,1704310234454,-500.0,0.00032876,2]
[310085357,1704310234465,-500.0,0.00032876,2]
[310085358,1704310234475,-500.0,0.00032876,2]
[310085359,1704310234486,-500.0,0.00032876,2]
[310085360,1704310234495,-500.0,0.00032876,2]
[310085361,1704310234506,-500.0,0.00032876,2]
[310085362,1704310234515,-500.0,0.00032876,2]
[310085363,1704310234525,-500.0,0.00032876,2]
[310085364,1704310234534,-500.0,0.00032876,2]
[310085365,1704310234544,-500.0,0.00032876,2]
[310085366,1704310234554,-500.0,0.00032876,2]
[310085367,1704310234563,-500.0,0.00032876,2]
[310085368,1704310234573,-500.0,0.00032876,2]
[310085369,1704310234582,-500.0,0.00032876,2]
[310085370,1704310234592,-500.0,0.00032876,2]
[310085371,1704310234601,-500.0,0.00032876,2]
[310085372,1704310234611,-500.0,0.00032876,2]
[310085373,1704310234621,-500.0,0.00032876,2]
[310085374,1704310234630,-500.0,0.00032876,2]
[310085375,1704310234640,-500.0,0.00032876,2]
[310085376,1704310234650,-500.0,0.00032876,2]
[310085377,1704310234659,-543.95544494,0.00032876,2]
[310085378,1704310234669,-500.0,0.00032876,2]
[310085379,1704310234679,-318.92511986,0.00032876,2]
[310085380,1704310234688,-500.0,0.00032876,2]
[310085381,1704310234700,-305.98481369,0.00032876,2]
[310085382,1704310234710,-500.0,0.00032876,2]
[310085383,1704310234720,-332.32720419,0.00032876,2]
[310085384,1704310234729,-500.0,0.00032876,2]
[310085385,1704310234739,-500.0,0.00032876,2]
[310085386,1704310234749,-231.19840363,0.00032876,2]
[310085387,1704310234759,-500.0,0.00032876,2]
[310085388,1704310234769,-500.0,0.00032876,2]
[310085389,1704310234778,-500.0,0.00032876,2]
[310085390,1704310234788,-500.0,0.00032876,2]
[310085391,1704310234798,-500.0,0.00032876,2]
[310085392,1704310234808,-500.0,0.00032876,2]
[310085393,1704310234818,-500.0,0.00032876,2]
[310085394,1704310234829,-500.0,0.00032876,2]
[310085395,1704310234839,-300.0,0.00032876,2]
[310085396,1704310234849,-500.0,0.00032876,2]
[310085397,1704310234859,-625.23876365,0.00032876,2]
[310085398,1704310234868,-500.0,0.00032876,2]
[310085399,1704310234878,-500.0,0.00032876,2]
[310085400,1704310234888,-430.7838879,0.00032876,2]
[310085401,1704310234898,-500.0,0.00032876,2]
[310085402,1704310234907,-500.0,0.00032876,2]
[310085403,1704310234917,-500.0,0.00032876,2]
[310085404,1704310234927,-500.92434372,0.00032876,2]
[310085405,1704310234937,-500.0,0.00032876,2]
[310085406,1704310234946,-500.0,0.00032876,2]
[310085407,1704310234955,-642.54787033,0.00032876,2]
[310085408,1704310234965,-500.0,0.00032876,2]
[310085409,1704310234975,-500.0,0.00032876,2]
[310085410,1704310234984,-500.0,0.00032876,2]
[310085411,1704310234994,-500.0,0.00032876,2]
[310085412,1704310235004,-500.0,0.00032876,2]
[310085413,1704310235016,-500.0,0.00032876,2]
[310085414,1704310235026,-501.38286445,0.00032876,2]
[310085415,1704310235037,-500.0,0.00032876,2]
[310085416,1704310235046,-500.0,0.00032876,2]
[310085417,1704310235056,-500.0,0.00032876,2]
[310085418,1704310235066,-500.0,0.00032876,2]
[310085419,1704310235077,-500.0,0.00032876,2]
[310085420,1704310235089,-500.0,0.00032876,2]
[310085421,1704310235101,-500.0,0.00032876,2]
[310085422,1704310235111,-500.0,0.00032876,2]
[310085424,1704310235121,-500.0,0.00032876,2]
[310085425,1704310235131,-500.0,0.00032876,2]
[310085426,1704310235141,-500.0,0.00032876,2]
[310085427,1704310235151,-500.0,0.00032876,2]
[310085428,1704310235161,-500.0,0.00032876,2]
[310085429,1704310235171,-500.0,0.00032876,2]
[310085430,1704310235185,-500.0,0.00032876,2]
[310085431,1704310235196,-500.0,0.00032876,2]
[310085432,1704310235207,-500.0,0.00032876,2]
[310085433,1704310235217,-500.0,0.00032876,2]
[310085434,1704310235229,-500.0,0.00032876,2]
[310085435,1704310235240,-500.0,0.00032876,2]
[310085436,1704310235251,-500.0,0.00032876,2]
[310085437,1704310235264,-500.0,0.00032876,2]
[310085438,1704310235277,-500.0,0.00032876,2]
[310085439,1704310235288,-500.0,0.00032876,2]
[310085440,1704310235299,-957.82,0.00032876,2]
[310085441,1704310235309,-500.0,0.00032876,2]
[310085442,1704310235319,-500.0,0.00032876,2]
[310085443,1704310235330,-500.0,0.00032876,2]
[310085444,1704310235340,-500.0,0.00032876,2]
[310085445,1704310235349,-500.0,0.00032876,2]
[310085446,1704310235360,-500.0,0.00032876,2]
[310085447,1704310235370,-500.0,0.00032876,2]
[310085448,1704310235379,-500.0,0.00032876,2]
[310085449,1704310235389,-500.0,0.00032876,2]
[310085450,1704310235399,-500.0,0.00032876,2]
[310085451,1704310235409,-1000.0,0.00032876,2]
[310085452,1704310235419,-500.0,0.00032876,2]
[310085453,1704310235428,-500.0,0.00032876,2]
[310085454,1704310235438,-500.0,0.00032876,2]
[310085455,1704310235448,-500.0,0.00032876,2]
[310085456,1704310235458,-500.0,0.00032876,2]
[310085457,1704310235468,-500.0,0.00032876,2]
[310085458,1704310235477,-500.0,0.00032876,2]
[310085459,1704310235487,-500.0,0.00032876,2]
[310085460,1704310235498,-500.0,0.00032876,2]
[310085461,1704310235510,-500.0,0.00032876,2]
[310085462,1704310235520,-500.0,0.00032876,2]
[310085464,1704310235531,-578.80629324,0.00032876,2]
[310085465,1704310235541,-500.0,0.00032876,2]
[310085466,1704310235795,-581.4738132,0.00032876,2]
[310085467,1704310235806,-500.0,0.00032876,2]
[310085468,1704310235816,-500.0,0.00032876,2]
[310085469,1704310235825,-500.0,0.00032876,2]
[310085470,1704310235835,-500.0,0.00032876,2]
[310085471,1704310235845,-500.0,0.00032876,2]
[310085472,1704310235855,-500.0,0.00032876,2]
[310085473,1704310235864,-500.0,0.00032876,2]
[310085474,1704310235874,-500.0,0.00032876,2]
[310085475,1704310235883,-911.55,0.00032876,2]
[310085476,1704310235893,-500.0,0.00032876,2]
[310085477,1704310235902,-500.0,0.00032876,2]
[310085478,1704310235912,-500.0,0.00032876,2]
[310085479,1704310235922,-500.0,0.00032876,2]
[310085480,1704310235932,-500.0,0.00032876,2]
[310085481,1704310235941,-500.0,0.00032876,2]
[310085482,1704310235951,-500.0,0.00032876,2]
[310085483,1704310235961,-500.0,0.00032876,2]
[310085484,1704310235971,-500.0,0.00032876,2]
[310085485,1704310235980,-500.0,0.00032876,2]
[310085486,1704310235990,-500.0,0.00032876,2]
[310085487,1704310236000,-500.0,0.00032876,2]
[310085488,1704310236012,-165.67371748,0.00032876,2]
[310085489,1704310236021,-500.0,0.00032876,2]
[310085490,1704310236031,-500.0,0.00032876,2]
[310085491,1704310236040,-500.0,0.00032876,2]
[310085492,1704310236050,-500.0,0.00032876,2]
[310085493,1704310236059,-500.0,0.00032876,2]
[310085494,1704310236070,-500.0,0.00032876,2]
[310085495,1704310236080,-500.0,0.00032876,2]
[310085496,1704310236090,-500.0,0.00032876,2]
[310085497,1704310236099,-500.0,0.00032876,2]
[310085498,1704310236109,-500.0,0.00032876,2]
[310085499,1704310236119,-500.0,0.00032876,2]
[310085500,1704310236130,-500.0,0.00032876,2]
[310085501,1704310236140,-500.0,0.00032876,2]
[310085502,1704310236150,-500.0,0.00032876,2]
[310085503,1704310236160,-500.0,0.00032876,2]
[310085504,1704310236169,-500.0,0.00032876,2]
[310085505,1704310236180,-500.0,0.00032876,2]
[310085506,1704310236190,-500.0,0.00032876,2]
[310085507,1704310236200,-500.0,0.00032876,2]
[310085508,1704310236211,-500.0,0.00032876,2]
[310085509,1704310236221,-549.10913168,0.00032876,2]
[310085510,1704310236231,-500.0,0.00032876,2]
[310085511,1704310236241,-500.0,0.00032876,2]
[310085512,1704310236250,-500.0,0.00032876,2]
[310085513,1704310236261,-500.0,0.00032876,2]
[310085514,1704310236271,-500.0,0.00032876,2]
[310085515,1704310236280,-500.0,0.00032876,2]
[310085516,1704310236290,-500.0,0.00032876,2]
[310085517,1704310236299,-500.0,0.00032876,2]
[310085518,1704310236309,-500.0,0.00032876,2]
[310085519,1704310236318,-500.0,0.00032876,2]
[310085520,1704310236328,-500.0,0.00032876,2]
[310085521,1704310236338,-500.0,0.00032876,2]
[310085522,1704310236356,-500.0,0.00032876,2]
[310085523,1704310236370,-500.0,0.00032876,2]
[310085524,1704310236380,-500.0,0.00032876,2]
[310085525,1704310236390,-500.0,0.00032876,2]
[310085526,1704310236401,-500.0,0.00032876,2]
[310085527,1704310236411,-500.0,0.00032876,2]
[310085528,1704310236422,-500.0,0.00032876,2]
[310085529,1704310236432,-500.0,0.00032876,2]
[310085530,1704310236443,-500.0,0.00032876,2]
[310085531,1704310236454,-648.03,0.00032876,2]
[310085532,1704310236465,-500.0,0.00032876,2]
[310085533,1704310236476,-500.0,0.00032876,2]
[310085534,1704310236487,-500.0,0.00032876,2]
[310085535,1704310236497,-500.0,0.00032876,2]
[310085536,1704310236508,-500.0,0.00032876,2]
[310085537,1704310236519,-500.0,0.00032876,2]
[310085538,1704310236529,-449.29879794,0.00032876,2]
[310085539,1704310236540,-500.0,0.00032876,2]
[310085540,1704310236550,-500.0,0.00032876,2]
[310085541,1704310236561,-500.0,0.00032876,2]
[310085542,1704310236571,-500.0,0.00032876,2]
[310085543,1704310236582,-500.0,0.00032876,2]
[310085544,1704310236592,-500.0,0.00032876,2]
[310085545,1704310236602,-500.0,0.00032876,2]
[310085546,1704310236613,-500.0,0.00032876,2]
[310085547,1704310236623,-500.0,0.00032876,2]
[310085548,1704310236634,-500.0,0.00032876,2]
[310085549,1704310236644,-500.0,0.00032876,2]
[310085550,1704310236654,-500.0,0.00032876,2]
[310085551,1704310236663,-500.0,0.00032876,2]
[310085552,1704310236673,-500.0,0.00032876,2]
[310085553,1704310236683,-500.0,0.00032876,2]
[310085554,1704310236693,-500.0,0.00032876,2]
[310085555,1704310236703,-500.0,0.00032876,2]
[310085556,1704310236713,-500.0,0.00032876,2]
[310085557,1704310236723,-500.0,0.00032876,2]
[310085558,1704310236733,-500.0,0.00032876,2]
[310085559,1704310236743,-500.0,0.00032876,2]
[310085560,1704310236753,-300.42688441,0.00032876,2]
[310085561,1704310236764,-500.0,0.00032876,2]
[310085562,1704310236774,-500.0,0.00032876,2]
[310085563,1704310236784,-500.0,0.00032876,2]
[310085564,1704310236794,-500.0,0.00032876,2]
[310085565,1704310236804,-500.0,0.00032876,2]
[310085566,1704310236815,-500.0,0.00032876,2]
[310085567,1704310236825,-500.0,0.00032876,2]
[310085569,1704310236835,-500.0,0.00032876,2]
[310085570,1704310236846,-500.0,0.00032876,2]
[310085571,1704310236856,-500.0,0.00032876,2]
[310085572,1704310236865,-500.0,0.00032876,2]
[310085573,1704310236875,-500.0,0.00032876,2]
[310085574,1704310236885,-500.0,0.00032876,2]